[Event "GrandPrix_29.05"]
[Site "Chess.com"]
[Date "2020.05.29"]
[Round "5"]
[White "Arseniy_Nesterov"]
[Black "Nikithebest"]
[Result "1-0"]
[WhiteElo "2300"]
[BlackElo "2123"]
[TimeControl "600+2"]
[EndTime "11:32:12 PDT"]
[Termination "Arseniy_Nesterov won by resignation"]

1. d4 {[%clk 0:10:01.9]} 1... Nf6 {[%clk 0:09:57.9]} 2. c4 {[%clk 0:10:03.3]}
2... c5 {[%clk 0:09:58.6]} 3. d5 {[%clk 0:10:04.1]} 3... b5 {[%clk 0:09:59.9]}
4. Qc2 {[%clk 0:10:04.8]} 4... g6 {[%clk 0:09:47]} 5. e4 {[%clk 0:10:05.2]} 5...
d6 {[%clk 0:09:48.3]} 6. Nf3 {[%clk 0:09:55.6]} 6... Bg7 {[%clk 0:09:47.4]} 7.
cxb5 {[%clk 0:09:54.9]} 7... a6 {[%clk 0:09:47]} 8. Nc3 {[%clk 0:09:48.9]} 8...
O-O {[%clk 0:09:46.8]} 9. a4 {[%clk 0:09:48.7]} 9... e6 {[%clk 0:09:21.6]} 10.
dxe6 {[%clk 0:09:43.7]} 10... fxe6 {[%clk 0:09:22.4]} 11. Bg5 {[%clk 0:08:52.8]}
11... h6 {[%clk 0:08:49.6]} 12. Bxf6 {[%clk 0:08:38.5]} 12... Qxf6 {[%clk
0:08:39]} 13. e5 {[%clk 0:06:44.6]} 13... dxe5 {[%clk 0:08:18]} 14. Bd3 {[%clk
0:06:18.8]} 14... axb5 {[%clk 0:08:11.2]} 15. Nxb5 {[%clk 0:06:16.3]} 15... Bb7
{[%clk 0:07:47.7]} 16. Be4 {[%clk 0:06:06.6]} 16... Nc6 {[%clk 0:07:03.3]} 17.
Qxc5 {[%clk 0:04:23.9]} 17... Rac8 {[%clk 0:06:08.4]} 18. Qb6 {[%clk 0:03:57.3]}
18... Nd4 {[%clk 0:03:42.6]} 19. Qxb7 {[%clk 0:03:40.9]} 19... Rb8 {[%clk
0:03:18.2]} 20. Qa6 {[%clk 0:03:32.5]} 20... Ra8 {[%clk 0:03:18.3]} 21. Bxa8
{[%clk 0:03:00.6]} 21... Nc2+ {[%clk 0:03:19.1]} 22. Ke2 {[%clk 0:02:27.9]}
22... Nxa1 {[%clk 0:03:09.8]} 23. Be4 {[%clk 0:01:52.1]} 23... Nb3 {[%clk
0:02:56.6]} 24. Rd1 {[%clk 0:01:40]} 24... Qf4 {[%clk 0:02:31.2]} 25. Qxe6+
{[%clk 0:01:39.2]} 25... Kh8 {[%clk 0:02:32.6]} 26. Qxg6 {[%clk 0:01:31.2]}
26... Kg8 {[%clk 0:02:21.7]} 27. Qe6+ {[%clk 0:01:01.6]} 27... Kh8 {[%clk
0:02:20.9]} 28. Qxb3 {[%clk 0:01:01.5]} 28... Qxe4+ {[%clk 0:02:20.1]} 29. Kf1
{[%clk 0:01:02.9]} 29... Qf4 {[%clk 0:02:05.5]} 30. Qe3 {[%clk 0:00:46.3]} 30...
Qxa4 {[%clk 0:02:06]} 31. Nc3 {[%clk 0:00:45.7]} 31... Qc4+ {[%clk 0:02:00.6]}
32. Qe2 {[%clk 0:00:45.3]} 32... Qf7 {[%clk 0:01:46.6]} 33. Nd2 {[%clk
0:00:35.6]} 33... Rb8 {[%clk 0:01:25.5]} 34. Nde4 {[%clk 0:00:36.4]} 34... Qb3
{[%clk 0:01:22.3]} 35. Rd2 {[%clk 0:00:35.9]} 35... Ra8 {[%clk 0:01:22.7]} 36.
g3 {[%clk 0:00:36.1]} 36... Rf8 {[%clk 0:01:16.7]} 37. Kg2 {[%clk 0:00:36.9]}
37... Qb7 {[%clk 0:01:17.5]} 38. f3 {[%clk 0:00:35.7]} 38... Qf7 {[%clk
0:01:13.2]} 39. Nd5 {[%clk 0:00:34.8]} 39... Rd8 {[%clk 0:01:07.5]} 40. Ne3
{[%clk 0:00:35.9]} 40... Rb8 {[%clk 0:01:08]} 41. Rc2 {[%clk 0:00:36.3]} 41...
Rf8 {[%clk 0:01:07.8]} 42. b4 {[%clk 0:00:36.6]} 42... Qb3 {[%clk 0:01:07.2]}
43. Rb2 {[%clk 0:00:36.5]} 43... Qe6 {[%clk 0:01:01]} 44. b5 {[%clk 0:00:37.8]}
44... Rb8 {[%clk 0:01:02.4]} 45. Qc4 {[%clk 0:00:37.5]} 45... Qb6 {[%clk
0:01:01]} 46. Nd5 {[%clk 0:00:38.5]} 46... Qa5 {[%clk 0:01:00.9]} 47. b6 {[%clk
0:00:39.5]} 47... Qa1 {[%clk 0:01:01.8]} 48. Qe2 {[%clk 0:00:39.1]} 48... Bf8
{[%clk 0:00:53.7]} 49. Nec3 {[%clk 0:00:39.6]} 49... Bd6 {[%clk 0:00:53.1]} 50.
b7 {[%clk 0:00:39.5]} 50... Rf8 {[%clk 0:00:44.5]} 51. Ra2 {[%clk 0:00:38.5]}
51... Qc1 {[%clk 0:00:42.7]} 52. Ra8 {[%clk 0:00:38.5]} 52... Bb8 {[%clk
0:00:43.9]} 53. Rxb8 {[%clk 0:00:39.1]} 1-0

[Event "GrandPrix_29.05"]
[Site "Chess.com"]
[Date "2020.05.29"]
[Round "5"]
[White "SuperFineHipster"]
[Black "ALeks_Ivlev"]
[Result "1-0"]
[WhiteElo "2148"]
[BlackElo "2126"]
[TimeControl "600+2"]
[EndTime "11:32:12 PDT"]
[Termination "SuperFineHipster won by resignation"]

1. Nf3 {[%clk 0:10:01.9]} 1... d5 {[%clk 0:09:58]} 2. g3 {[%clk 0:09:56.4]} 2...
Nf6 {[%clk 0:09:54.8]} 3. Bg2 {[%clk 0:09:57.6]} 3... c6 {[%clk 0:09:55.5]} 4.
O-O {[%clk 0:09:58.7]} 4... Bf5 {[%clk 0:09:55]} 5. d3 {[%clk 0:09:59.4]} 5...
h6 {[%clk 0:09:50.8]} 6. c4 {[%clk 0:09:57.5]} 6... e6 {[%clk 0:09:42.9]} 7. Be3
{[%clk 0:09:57.3]} 7... Nbd7 {[%clk 0:09:37.8]} 8. Nc3 {[%clk 0:09:57.4]} 8...
Ng4 {[%clk 0:08:51]} 9. Bd2 {[%clk 0:09:56.2]} 9... dxc4 {[%clk 0:08:50.5]} 10.
dxc4 {[%clk 0:09:56.7]} 10... Bc5 {[%clk 0:08:50.3]} 11. Na4 {[%clk 0:08:49]}
11... Be7 {[%clk 0:08:39.7]} 12. Qb3 {[%clk 0:08:49.2]} 12... Qc8 {[%clk
0:08:31.1]} 13. Bb4 {[%clk 0:08:09.7]} 13... Bc2 {[%clk 0:07:43.4]} 14. Qxc2
{[%clk 0:07:11.2]} 14... Bxb4 {[%clk 0:07:42.6]} 15. c5 {[%clk 0:07:13.1]} 15...
Ngf6 {[%clk 0:07:32.5]} 16. a3 {[%clk 0:06:59.8]} 16... Ba5 {[%clk 0:07:31.4]}
17. b4 {[%clk 0:07:01.7]} 17... Bc7 {[%clk 0:07:27.9]} 18. Nb2 {[%clk
0:06:51.8]} 18... O-O {[%clk 0:06:45.8]} 19. Nc4 {[%clk 0:06:51.7]} 19... a5
{[%clk 0:06:14.1]} 20. e4 {[%clk 0:06:52.6]} 20... Ng4 {[%clk 0:06:05.7]} 21.
Qc3 {[%clk 0:06:43.5]} 21... Qb8 {[%clk 0:05:45]} 22. Nd4 {[%clk 0:06:27.8]}
22... Nge5 {[%clk 0:05:40.4]} 23. Ne3 {[%clk 0:06:11.4]} 23... Ng6 {[%clk
0:04:52.5]} 24. f4 {[%clk 0:06:07.7]} 24... e5 {[%clk 0:04:51]} 25. Ndf5 {[%clk
0:06:05.7]} 25... f6 {[%clk 0:04:37.2]} 26. Rad1 {[%clk 0:05:53.1]} 26... Qe8
{[%clk 0:04:15.5]} 27. Bh3 {[%clk 0:05:09.1]} 27... Rd8 {[%clk 0:04:12.4]} 28.
Nc4 {[%clk 0:04:41.8]} 28... exf4 {[%clk 0:04:01.5]} 29. Nfd6 {[%clk 0:03:58.1]}
29... Qe7 {[%clk 0:03:41.7]} 30. gxf4 {[%clk 0:03:58.6]} 30... b5 {[%clk
0:02:51.8]} 31. Nf5 {[%clk 0:03:56.4]} 31... Qxe4 {[%clk 0:02:45.9]} 32. Ncd6
{[%clk 0:03:55.9]} 32... Bxd6 {[%clk 0:02:04.1]} 33. Nxd6 {[%clk 0:03:54.9]}
33... Qe2 {[%clk 0:01:38.5]} 34. Rde1 {[%clk 0:03:51.3]} 34... Qh5 {[%clk
0:01:33.6]} 35. Be6+ {[%clk 0:02:49.4]} 35... Kh7 {[%clk 0:01:32.5]} 36. Qg3
{[%clk 0:02:49.8]} 36... f5 {[%clk 0:01:27.8]} 37. Rf2 {[%clk 0:02:18.9]} 37...
Rf6 {[%clk 0:01:27.1]} 38. Rg2 {[%clk 0:02:14.6]} 38... Ndf8 {[%clk 0:01:26.5]}
39. Bb3 {[%clk 0:02:06.3]} 39... Qh4 {[%clk 0:00:30.5]} 40. Ne8 {[%clk
0:02:04.9]} 40... Rxe8 {[%clk 0:00:24.3]} 41. Rxe8 {[%clk 0:02:02.8]} 41... axb4
{[%clk 0:00:20.3]} 42. axb4 {[%clk 0:01:54]} 42... Qxf4 {[%clk 0:00:19.5]} 43.
Qxf4 {[%clk 0:01:51.2]} 43... Nxf4 {[%clk 0:00:20.3]} 44. Rd2 {[%clk 0:01:53]}
44... N8g6 {[%clk 0:00:19.6]} 45. Bg8+ {[%clk 0:01:36.1]} 45... Kh8 {[%clk
0:00:20.5]} 46. Rd6 {[%clk 0:01:37.7]} 46... h5 {[%clk 0:00:14.5]} 47. Rxf6
{[%clk 0:01:21.1]} 47... gxf6 {[%clk 0:00:15.6]} 48. Bd5+ {[%clk 0:01:22.5]}
48... Kg7 {[%clk 0:00:16.4]} 49. Bxc6 {[%clk 0:01:23.8]} 49... Nd3 {[%clk
0:00:16.4]} 50. Bxb5 {[%clk 0:01:20.3]} 50... Nxb4 {[%clk 0:00:17.4]} 51. c6
{[%clk 0:01:21.4]} 51... Nd5 {[%clk 0:00:17.7]} 52. Bc4 {[%clk 0:01:19.9]} 52...
Nb6 {[%clk 0:00:04.9]} 53. c7 {[%clk 0:01:19.2]} 53... f4 {[%clk 0:00:06]} 54.
Rb8 {[%clk 0:01:14.2]} 1-0

[Event "GrandPrix_29.05"]
[Site "Chess.com"]
[Date "2020.05.29"]
[Round "5"]
[White "Elshadchess"]
[Black "Yaroslav_Remizov"]
[Result "0-1"]
[WhiteElo "1682"]
[BlackElo "2079"]
[TimeControl "600+2"]
[EndTime "11:32:12 PDT"]
[Termination "Yaroslav_Remizov won by resignation"]

1. Nc3 {[%clk 0:10:01.8]} 1... d5 {[%clk 0:09:52.8]} 2. e4 {[%clk 0:10:02.2]}
2... c6 {[%clk 0:09:54.1]} 3. Nf3 {[%clk 0:10:02.5]} 3... dxe4 {[%clk
0:09:55.2]} 4. Nxe4 {[%clk 0:10:03.6]} 4... Nf6 {[%clk 0:09:57.1]} 5. Nxf6+
{[%clk 0:09:59]} 5... exf6 {[%clk 0:09:59]} 6. Bc4 {[%clk 0:10:00]} 6... Bd6
{[%clk 0:09:55.5]} 7. Qe2+ {[%clk 0:10:00.1]} 7... Qe7 {[%clk 0:09:50]} 8. Qxe7+
{[%clk 0:10:00.2]} 8... Kxe7 {[%clk 0:09:51.5]} 9. d4 {[%clk 0:10:01.2]} 9...
Be6 {[%clk 0:09:52.3]} 10. Bd3 {[%clk 0:09:56.6]} 10... Na6 {[%clk 0:09:46.2]}
11. c3 {[%clk 0:09:51.7]} 11... Nc7 {[%clk 0:09:45.6]} 12. c4 {[%clk 0:09:38.6]}
12... c5 {[%clk 0:09:31.1]} 13. d5 {[%clk 0:09:37]} 13... Bg4 {[%clk 0:09:31.1]}
14. Nh4 {[%clk 0:09:07.8]} 14... Be5 {[%clk 0:09:18]} 15. Bf5 {[%clk 0:09:00.5]}
15... h5 {[%clk 0:07:11.4]} 16. h3 {[%clk 0:08:42.4]} 16... Bxf5 {[%clk
0:06:55.4]} 17. Nxf5+ {[%clk 0:08:42.6]} 17... Kd7 {[%clk 0:06:56.7]} 18. f4
{[%clk 0:08:28.3]} 18... Bd6 {[%clk 0:06:40.3]} 19. O-O {[%clk 0:07:49.2]} 19...
Bf8 {[%clk 0:03:31.5]} 20. Bd2 {[%clk 0:07:20.7]} 20... g6 {[%clk 0:02:59.5]}
21. Ng3 {[%clk 0:06:31]} 21... f5 {[%clk 0:02:58.8]} 22. Bc3 {[%clk 0:06:30.4]}
22... Rg8 {[%clk 0:02:59]} 23. Rae1 {[%clk 0:06:25.1]} 23... Bd6 {[%clk
0:02:58.8]} 24. Be5 {[%clk 0:06:24]} 24... b5 {[%clk 0:02:34.9]} 25. b3 {[%clk
0:06:19.7]} 25... bxc4 {[%clk 0:02:18.4]} 26. bxc4 {[%clk 0:06:21.6]} 26... Rab8
{[%clk 0:02:19.5]} 27. Rb1 {[%clk 0:06:10.4]} 27... Rge8 {[%clk 0:02:20.4]} 28.
Bxd6 {[%clk 0:05:26.9]} 28... Kxd6 {[%clk 0:02:19.8]} 29. Kf2 {[%clk 0:05:25.6]}
29... Rb4 {[%clk 0:02:00.6]} 30. Rxb4 {[%clk 0:05:20.9]} 30... cxb4 {[%clk
0:02:02.5]} 31. Rc1 {[%clk 0:05:07]} 31... a5 {[%clk 0:01:36.7]} 32. Nf1 {[%clk
0:04:49.9]} 32... Na6 {[%clk 0:01:25.5]} 33. Nd2 {[%clk 0:04:37.1]} 33... Nc5
{[%clk 0:01:13.1]} 34. Kf3 {[%clk 0:04:21.7]} 34... a4 {[%clk 0:00:49.7]} 35.
Rb1 {[%clk 0:04:07.3]} 35... Nd3 {[%clk 0:00:50.2]} 36. g4 {[%clk 0:03:33.2]}
36... hxg4+ {[%clk 0:00:36.1]} 37. hxg4 {[%clk 0:03:35.1]} 37... fxg4+ {[%clk
0:00:38]} 38. Kxg4 {[%clk 0:03:34.7]} 38... Re2 {[%clk 0:00:39.3]} 39. Rd1
{[%clk 0:02:57.9]} 39... Nf2+ {[%clk 0:00:08.2]} 40. Kf3 {[%clk 0:02:58.3]}
40... Nxd1 {[%clk 0:00:10.1]} 41. Kxe2 {[%clk 0:02:59.1]} 41... Nc3+ {[%clk
0:00:11.5]} 42. Kd3 {[%clk 0:03:00.4]} 42... Nxa2 {[%clk 0:00:12.3]} 43. Ne4+
{[%clk 0:03:01.2]} 43... Kc7 {[%clk 0:00:11.2]} 44. c5 {[%clk 0:02:56.8]} 44...
a3 {[%clk 0:00:07.4]} 45. Kc2 {[%clk 0:02:27.1]} 45... Nc3 {[%clk 0:00:07.9]}
46. Nxc3 {[%clk 0:02:27.4]} 46... bxc3 {[%clk 0:00:09.8]} 47. Kxc3 {[%clk
0:02:27.1]} 47... f6 {[%clk 0:00:11.3]} 48. Kb3 {[%clk 0:01:58.1]} 48... g5
{[%clk 0:00:12.1]} 49. fxg5 {[%clk 0:01:57.3]} 49... fxg5 {[%clk 0:00:14]} 50.
Kxa3 {[%clk 0:01:57.5]} 50... g4 {[%clk 0:00:15.2]} 51. Kb4 {[%clk 0:01:58]}
51... g3 {[%clk 0:00:16.2]} 52. Kb5 {[%clk 0:01:58.4]} 52... g2 {[%clk
0:00:17.2]} 53. d6+ {[%clk 0:02:00.3]} 53... Kd7 {[%clk 0:00:17.8]} 54. Kb6
{[%clk 0:01:58.2]} 54... g1=Q {[%clk 0:00:18.3]} 55. Kb5 {[%clk 0:01:57.2]}
55... Qb1+ {[%clk 0:00:19.5]} 56. Kc4 {[%clk 0:01:55.2]} 56... Kc6 {[%clk
0:00:20]} 57. Kd4 {[%clk 0:01:56.7]} 57... Qb4+ {[%clk 0:00:20.7]} 58. Ke5
{[%clk 0:01:56.1]} 58... Qxc5+ {[%clk 0:00:22.6]} 59. Ke4 {[%clk 0:01:56.8]}
59... Qxd6 {[%clk 0:00:23.9]} 60. Ke3 {[%clk 0:01:58.2]} 60... Kd5 {[%clk
0:00:25]} 61. Kf3 {[%clk 0:01:59.3]} 61... Kd4 {[%clk 0:00:24.1]} 62. Kg4 {[%clk
0:01:59.5]} 62... Ke4 {[%clk 0:00:24.6]} 63. Kg5 {[%clk 0:01:58.2]} 63... Qe6
{[%clk 0:00:25.6]} 0-1

[Event "GrandPrix_29.05"]
[Site "Chess.com"]
[Date "2020.05.29"]
[Round "5"]
[White "yamalchess"]
[Black "Funo09"]
[Result "0-1"]
[WhiteElo "2454"]
[BlackElo "2631"]
[TimeControl "600+2"]
[EndTime "11:32:20 PDT"]
[Termination "Funo09 won by resignation"]

1. d4 {[%clk 0:10:01.8]} 1... Nf6 {[%clk 0:10:00.9]} 2. c4 {[%clk 0:10:02.3]}
2... Nc6 {[%clk 0:10:02.3]} 3. Nf3 {[%clk 0:09:58.6]} 3... d6 {[%clk 0:10:02.9]}
4. d5 {[%clk 0:09:57.1]} 4... Ne5 {[%clk 0:10:03.5]} 5. Nxe5 {[%clk 0:09:57.6]}
5... dxe5 {[%clk 0:10:05.4]} 6. g3 {[%clk 0:09:58.8]} 6... e6 {[%clk 0:10:04.5]}
7. Bg2 {[%clk 0:09:58.2]} 7... exd5 {[%clk 0:09:40.5]} 8. cxd5 {[%clk
0:09:57.8]} 8... Bc5 {[%clk 0:09:37.8]} 9. Nc3 {[%clk 0:09:46.1]} 9... O-O
{[%clk 0:09:38.1]} 10. O-O {[%clk 0:09:40.2]} 10... h6 {[%clk 0:09:37.6]} 11. h3
{[%clk 0:09:13.4]} 11... a6 {[%clk 0:09:31.3]} 12. Kh2 {[%clk 0:09:09.6]} 12...
Qe7 {[%clk 0:09:09.6]} 13. a3 {[%clk 0:09:00.9]} 13... e4 {[%clk 0:08:45.6]} 14.
b4 {[%clk 0:08:37.3]} 14... Bd6 {[%clk 0:08:25.4]} 15. Qc2 {[%clk 0:08:14.6]}
15... Bf5 {[%clk 0:08:05.7]} 16. Be3 {[%clk 0:07:42.3]} 16... Bg6 {[%clk
0:07:05]} 17. Qd2 {[%clk 0:07:20.7]} 17... Rad8 {[%clk 0:06:42.4]} 18. Rad1
{[%clk 0:06:42]} 18... Rfe8 {[%clk 0:04:40.6]} 19. Rfe1 {[%clk 0:06:14.3]} 19...
c6 {[%clk 0:04:05.3]} 20. Qa2 {[%clk 0:06:07.1]} 20... Be5 {[%clk 0:03:59.5]}
21. Bc5 {[%clk 0:05:06.8]} 21... Qc7 {[%clk 0:03:58.5]} 22. d6 {[%clk
0:03:23.1]} 22... Bxd6 {[%clk 0:03:57.9]} 23. Na4 {[%clk 0:02:56.8]} 23... Nd5
{[%clk 0:03:16.4]} 24. e3 {[%clk 0:02:48.2]} 24... b5 {[%clk 0:03:00.6]} 25.
Rxd5 {[%clk 0:02:35.4]} 25... cxd5 {[%clk 0:02:57.8]} 26. Bb6 {[%clk 0:02:35.1]}
26... Qc4 {[%clk 0:01:08.7]} 27. Qxc4 {[%clk 0:02:31.1]} 27... dxc4 {[%clk
0:01:10.6]} 28. Bxd8 {[%clk 0:02:31.8]} 28... Rxd8 {[%clk 0:01:12.5]} 29. Nc3
{[%clk 0:02:26.8]} 29... Be5 {[%clk 0:01:10.3]} 30. Nxe4 {[%clk 0:02:23.8]}
30... Rd3 {[%clk 0:01:00.7]} 31. Nc5 {[%clk 0:02:12.7]} 31... Rxa3 {[%clk
0:01:00.6]} 32. Rd1 {[%clk 0:01:31.8]} 32... c3 {[%clk 0:01:01.8]} 33. e4 {[%clk
0:01:22.1]} 33... f6 {[%clk 0:00:18.2]} 34. f4 {[%clk 0:01:05.6]} 34... Bd4
{[%clk 0:00:15.4]} 35. Rxd4 {[%clk 0:00:58.6]} 35... c2 {[%clk 0:00:16.1]} 36.
Rd8+ {[%clk 0:00:59.1]} 36... Kf7 {[%clk 0:00:17.3]} 37. Nd3 {[%clk 0:00:27.4]}
37... Rxd3 {[%clk 0:00:18.4]} 38. Rc8 {[%clk 0:00:27.9]} 38... Rd2 {[%clk
0:00:19.5]} 39. f5 {[%clk 0:00:27]} 39... Bh7 {[%clk 0:00:20.9]} 40. g4 {[%clk
0:00:26.2]} 40... Ke7 {[%clk 0:00:21.7]} 41. Kg3 {[%clk 0:00:26.1]} 41... Kd7
{[%clk 0:00:23]} 42. Rc5 {[%clk 0:00:27.1]} 42... Bg8 {[%clk 0:00:23.4]} 43. Bf1
{[%clk 0:00:24.3]} 43... Bb3 {[%clk 0:00:21.8]} 44. e5 {[%clk 0:00:21.7]} 44...
fxe5 {[%clk 0:00:22.7]} 45. h4 {[%clk 0:00:20.4]} 45... Rd1 {[%clk 0:00:23.7]}
46. Be2 {[%clk 0:00:21.2]} 46... c1=Q {[%clk 0:00:24]} 0-1

[Event "GrandPrix_29.05"]
[Site "Chess.com"]
[Date "2020.05.29"]
[Round "5"]
[White "RogerFederer13"]
[Black "Baron_von_Koenig"]
[Result "1-0"]
[WhiteElo "2127"]
[BlackElo "2131"]
[TimeControl "600+2"]
[EndTime "11:32:22 PDT"]
[Termination "RogerFederer13 won on time"]

1. e4 {[%clk 0:10:01.9]} 1... d5 {[%clk 0:10:00.6]} 2. exd5 {[%clk 0:10:02.5]}
2... Qxd5 {[%clk 0:10:02]} 3. Nc3 {[%clk 0:10:03.6]} 3... Qd6 {[%clk 0:10:03]}
4. d4 {[%clk 0:10:04]} 4... Nf6 {[%clk 0:10:03.4]} 5. Nf3 {[%clk 0:10:05.1]}
5... a6 {[%clk 0:10:04.6]} 6. g3 {[%clk 0:10:04.2]} 6... Bg4 {[%clk 0:10:04.9]}
7. Bg2 {[%clk 0:10:05]} 7... Nc6 {[%clk 0:10:06.3]} 8. O-O {[%clk 0:10:04.9]}
8... O-O-O {[%clk 0:10:06.8]} 9. d5 {[%clk 0:10:06.2]} 9... Ne5 {[%clk
0:10:01.2]} 10. Bf4 {[%clk 0:09:59.4]} 10... Nxf3+ {[%clk 0:10:02]} 11. Bxf3
{[%clk 0:10:01.3]} 11... Qd7 {[%clk 0:10:02.6]} 12. Bxg4 {[%clk 0:09:07.4]}
12... Qxg4 {[%clk 0:09:57.4]} 13. Qd4 {[%clk 0:07:54.7]} 13... e5 {[%clk
0:07:31.4]} 14. Qxe5 {[%clk 0:05:10.7]} 14... Bd6 {[%clk 0:07:31.6]} 15. Qg5
{[%clk 0:05:11.9]} 15... Qh3 {[%clk 0:06:59]} 16. Bxd6 {[%clk 0:03:36.2]} 16...
Ng4 {[%clk 0:06:22.7]} 17. Qf5+ {[%clk 0:02:42.2]} 17... Rd7 {[%clk 0:06:19.7]}
18. Rfe1 {[%clk 0:02:40.4]} 18... Qxh2+ {[%clk 0:04:41.4]} 19. Kf1 {[%clk
0:02:39.7]} 19... Qh3+ {[%clk 0:04:40.1]} 20. Ke2 {[%clk 0:02:13.3]} 20... g6
{[%clk 0:03:10.1]} 21. Qf4 {[%clk 0:01:14]} 21... Rxd6 {[%clk 0:02:34.9]} 22.
Rh1 {[%clk 0:00:26.2]} 22... Nh2 {[%clk 0:02:21.3]} 23. Kd2 {[%clk 0:00:26.9]}
23... Qg2 {[%clk 0:02:03]} 24. Rad1 {[%clk 0:00:24.1]} 24... Nf3+ {[%clk
0:01:04.6]} 25. Kc1 {[%clk 0:00:24.6]} 25... f5 {[%clk 0:01:04.1]} 26. Qe3
{[%clk 0:00:19.9]} 26... Kb8 {[%clk 0:00:48.4]} 27. Ne2 {[%clk 0:00:21]} 27...
g5 {[%clk 0:00:38.3]} 28. Qe7 {[%clk 0:00:14.6]} 28... Qxf2 {[%clk 0:00:20.7]}
29. Rdf1 {[%clk 0:00:15.1]} 29... Qg2 {[%clk 0:00:21.1]} 30. Qe3 {[%clk
0:00:09.1]} 30... Rh6 {[%clk 0:00:13.2]} 31. Rhg1 {[%clk 0:00:03.9]} 31... Nxg1
{[%clk 0:00:13.4]} 32. Rxg1 {[%clk 0:00:05.8]} 32... Rh1 {[%clk 0:00:11.6]} 33.
b3 {[%clk 0:00:04.8]} 33... f4 {[%clk 0:00:06.5]} 34. gxf4 {[%clk 0:00:04.9]}
34... gxf4 {[%clk 0:00:07.5]} 35. Qd4 {[%clk 0:00:06.2]} 35... Re8 {[%clk
0:00:06.9]} 36. Rxh1 {[%clk 0:00:04.6]} 36... Qxh1+ {[%clk 0:00:07.4]} 37. Kb2
{[%clk 0:00:06.5]} 37... Rxe2 {[%clk 0:00:02.5]} 38. d6 {[%clk 0:00:07.9]} 1-0

[Event "GrandPrix_29.05"]
[Site "Chess.com"]
[Date "2020.05.29"]
[Round "5"]
[White "SmirnovTimofey2000"]
[Black "Gurvich_Vitaly"]
[Result "0-1"]
[WhiteElo "2163"]
[BlackElo "2382"]
[TimeControl "600+2"]
[EndTime "11:32:26 PDT"]
[Termination "Gurvich_Vitaly won by checkmate"]

1. e4 {[%clk 0:09:59.9]} 1... d6 {[%clk 0:10:00.9]} 2. d4 {[%clk 0:09:59.7]}
2... Nf6 {[%clk 0:10:02.5]} 3. Nc3 {[%clk 0:10:00]} 3... e5 {[%clk 0:10:03.3]}
4. Nf3 {[%clk 0:10:00.1]} 4... Nbd7 {[%clk 0:10:03.9]} 5. Bc4 {[%clk 0:09:59.6]}
5... Be7 {[%clk 0:10:04.6]} 6. O-O {[%clk 0:09:59.8]} 6... O-O {[%clk
0:10:05.5]} 7. Re1 {[%clk 0:09:57.7]} 7... c6 {[%clk 0:10:05.2]} 8. a4 {[%clk
0:09:57.4]} 8... a5 {[%clk 0:10:06.1]} 9. h3 {[%clk 0:09:45.9]} 9... exd4 {[%clk
0:10:05.9]} 10. Nxd4 {[%clk 0:09:45.3]} 10... Nc5 {[%clk 0:10:07.8]} 11. Bf1
{[%clk 0:09:38.9]} 11... Re8 {[%clk 0:10:06.3]} 12. g3 {[%clk 0:09:34.7]} 12...
Bf8 {[%clk 0:10:06.8]} 13. Bg2 {[%clk 0:09:34.6]} 13... Qb6 {[%clk 0:10:06.2]}
14. b3 {[%clk 0:09:18.1]} 14... Bd7 {[%clk 0:09:48.6]} 15. Bg5 {[%clk
0:09:12.7]} 15... Be7 {[%clk 0:09:45]} 16. Qd2 {[%clk 0:08:46.5]} 16... h6
{[%clk 0:09:26.4]} 17. Bf4 {[%clk 0:08:45.2]} 17... Bf8 {[%clk 0:09:24.7]} 18.
g4 {[%clk 0:08:24.8]} 18... Nh7 {[%clk 0:09:14.2]} 19. Rad1 {[%clk 0:07:55.8]}
19... Rad8 {[%clk 0:09:13]} 20. Nde2 {[%clk 0:07:35.4]} 20... Bc8 {[%clk
0:09:09.7]} 21. Ng3 {[%clk 0:07:34.1]} 21... Qb4 {[%clk 0:09:05.9]} 22. Re2
{[%clk 0:06:28]} 22... b6 {[%clk 0:08:55.6]} 23. Nb1 {[%clk 0:05:58.7]} 23...
Ba6 {[%clk 0:06:05.1]} 24. Qxb4 {[%clk 0:05:58.8]} 24... axb4 {[%clk 0:06:07]}
25. Red2 {[%clk 0:06:00.3]} 25... Nf6 {[%clk 0:05:52.2]} 26. e5 {[%clk
0:03:21.3]} 26... Nd5 {[%clk 0:05:16.4]} 27. Bxd5 {[%clk 0:03:15]} 27... cxd5
{[%clk 0:05:18.3]} 28. exd6 {[%clk 0:03:14.7]} 28... Ne6 {[%clk 0:05:11.1]} 29.
Be3 {[%clk 0:03:13.5]} 29... Rxd6 {[%clk 0:05:04]} 30. Rxd5 {[%clk 0:02:59.5]}
30... Rc6 {[%clk 0:04:55.2]} 31. Rc1 {[%clk 0:02:55.5]} 31... Rec8 {[%clk
0:03:39.1]} 32. Rd2 {[%clk 0:02:50.9]} 32... Bc5 {[%clk 0:02:58.1]} 33. Nf5
{[%clk 0:02:25.4]} 33... g6 {[%clk 0:02:52.8]} 34. Bxc5 {[%clk 0:02:23.3]} 34...
gxf5 {[%clk 0:02:52.3]} 35. Bxb4 {[%clk 0:02:23.5]} 35... Nf4 {[%clk 0:02:23.4]}
36. c4 {[%clk 0:02:05.2]} 36... Nxh3+ {[%clk 0:02:11.3]} 37. Kg2 {[%clk
0:01:49.1]} 37... fxg4 {[%clk 0:02:11.4]} 38. Kg3 {[%clk 0:01:48.5]} 38... Ng5
{[%clk 0:02:03]} 39. Kxg4 {[%clk 0:01:32.5]} 39... Re8 {[%clk 0:01:45.6]} 40. f4
{[%clk 0:01:08.6]} 40... Bc8+ {[%clk 0:01:39.9]} 41. Kh5 {[%clk 0:01:06.2]}
41... Re3 {[%clk 0:00:22.1]} 42. Rh1 {[%clk 0:00:04.6]} 42... Ne4 {[%clk
0:00:19.5]} 43. Rg1+ {[%clk 0:00:05]} 43... Kh7 {[%clk 0:00:19]} 44. Rdg2 {[%clk
0:00:05.3]} 44... Rh3# {[%clk 0:00:16.9]} 0-1